[Event "*** Titled Tuesday Blitz"]
[Site "Chess.com"]
[Date "2020.10.20"]
[Round "3"]
[White "tdf98pantani"]
[Black "Brave_spirit12"]
[Result "1-0"]
[WhiteElo "2726"]
[BlackElo "2475"]
[TimeControl "180+1"]
[EndTime "10:27:41 PDT"]
[Termination "tdf98pantani won on time"]

1. d4 {[%clk 0:03:00.9]} 1... Nf6 {[%clk 0:02:59.8]} 2. c4 {[%clk 0:03:00.6]}
2... e6 {[%clk 0:02:59.8]} 3. Nf3 {[%clk 0:02:59]} 3... d5 {[%clk 0:02:59.7]} 4.
Nc3 {[%clk 0:02:58.4]} 4... Be7 {[%clk 0:02:58.6]} 5. Bf4 {[%clk 0:02:58.2]}
5... O-O {[%clk 0:02:58.4]} 6. a3 {[%clk 0:02:57.5]} 6... Ne4 {[%clk 0:02:56.2]}
7. Qc2 {[%clk 0:02:53.9]} 7... f5 {[%clk 0:02:51.2]} 8. e3 {[%clk 0:02:53.9]}
8... c6 {[%clk 0:02:48.1]} 9. Be2 {[%clk 0:02:50.9]} 9... g5 {[%clk 0:02:42.9]}
10. Bxb8 {[%clk 0:02:48.7]} 10... Rxb8 {[%clk 0:02:42]} 11. Ne5 {[%clk
0:02:48.6]} 11... Bf6 {[%clk 0:02:39.3]} 12. O-O {[%clk 0:02:41]} 12... Qc7
{[%clk 0:02:26.9]} 13. f4 {[%clk 0:02:40.6]} 13... g4 {[%clk 0:02:21.8]} 14.
Nxe4 {[%clk 0:02:39.1]} 14... dxe4 {[%clk 0:02:17.9]} 15. c5 {[%clk 0:02:39.3]}
15... b6 {[%clk 0:02:11.7]} 16. b4 {[%clk 0:02:38.6]} 16... a5 {[%clk
0:02:06.9]} 17. cxb6 {[%clk 0:02:31.6]} 17... Qxb6 {[%clk 0:02:03.4]} 18. Nxc6
{[%clk 0:02:30.1]} 18... Ra8 {[%clk 0:01:21]} 19. Nxa5 {[%clk 0:02:29]} 19...
Ba6 {[%clk 0:01:16.4]} 20. Nb3 {[%clk 0:02:23.4]} 20... h5 {[%clk 0:00:55.5]}
21. Bxa6 {[%clk 0:02:19.7]} 21... Rxa6 {[%clk 0:00:45.3]} 22. Nc5 {[%clk
0:02:19.7]} 22... Ra7 {[%clk 0:00:41]} 23. Qc4 {[%clk 0:02:19.1]} 23... Re8
{[%clk 0:00:36]} 24. a4 {[%clk 0:02:18.9]} 24... h4 {[%clk 0:00:33.3]} 25. a5
{[%clk 0:02:18.2]} 25... Qc7 {[%clk 0:00:28]} 26. Ra2 {[%clk 0:02:02.7]} 26...
g3 {[%clk 0:00:27.7]} 27. h3 {[%clk 0:02:01.1]} 27... Kf7 {[%clk 0:00:26.1]} 28.
Rfa1 {[%clk 0:02:00.3]} 28... Kg6 {[%clk 0:00:19]} 29. b5 {[%clk 0:02:00.3]}
29... Raa8 {[%clk 0:00:11]} 30. b6 {[%clk 0:02:00]} 30... Qc6 {[%clk 0:00:10.5]}
31. b7 {[%clk 0:01:58.8]} 31... Ra7 {[%clk 0:00:10.6]} 32. a6 {[%clk 0:01:58.8]}
32... Rb8 {[%clk 0:00:10.1]} 33. Qxe6 {[%clk 0:01:57.1]} 33... Qb5 {[%clk
0:00:07]} 34. Qd6 {[%clk 0:01:50.4]} 34... Rbxb7 {[%clk 0:00:03.1]} 35. Nxb7
{[%clk 0:01:40.7]} 35... Qd3 {[%clk 0:00:02.3]} 36. Qa3 {[%clk 0:01:36.3]} 1-0

[Event "*** Titled Tuesday Blitz"]
[Site "Chess.com"]
[Date "2020.10.20"]
[Round "3"]
[White "Fusikk"]
[Black "Guriempire"]
[Result "0-1"]
[WhiteElo "2521"]
[BlackElo "2806"]
[TimeControl "180+1"]
[EndTime "10:27:44 PDT"]
[Termination "Guriempire won by resignation"]

1. d4 {[%clk 0:03:00.9]} 1... Nf6 {[%clk 0:02:55.3]} 2. c4 {[%clk 0:03:00.8]}
2... e6 {[%clk 0:02:55.9]} 3. Nf3 {[%clk 0:03:00.4]} 3... d5 {[%clk 0:02:55.3]}
4. Nc3 {[%clk 0:02:59.4]} 4... c6 {[%clk 0:02:54.1]} 5. e3 {[%clk 0:02:58.8]}
5... Nbd7 {[%clk 0:02:53.1]} 6. Qc2 {[%clk 0:02:58.1]} 6... Bd6 {[%clk
0:02:52.1]} 7. Bd3 {[%clk 0:02:58.5]} 7... dxc4 {[%clk 0:02:51.3]} 8. Bxc4
{[%clk 0:02:58.3]} 8... b5 {[%clk 0:02:51.8]} 9. Be2 {[%clk 0:02:56.8]} 9... O-O
{[%clk 0:02:50.6]} 10. O-O {[%clk 0:02:56.7]} 10... Bb7 {[%clk 0:02:49.8]} 11.
Rd1 {[%clk 0:02:56.4]} 11... Qe7 {[%clk 0:02:46]} 12. e4 {[%clk 0:02:55]} 12...
e5 {[%clk 0:02:46]} 13. h3 {[%clk 0:02:46.4]} 13... h6 {[%clk 0:02:43.9]} 14.
Nh4 {[%clk 0:02:35.3]} 14... Bc7 {[%clk 0:02:18.9]} 15. Nf5 {[%clk 0:02:32.9]}
15... Qe6 {[%clk 0:02:19.5]} 16. Nxb5 {[%clk 0:02:26.4]} 16... cxb5 {[%clk
0:02:17.3]} 17. Qxc7 {[%clk 0:02:21.8]} 17... Bxe4 {[%clk 0:02:13.3]} 18. dxe5
{[%clk 0:01:57.4]} 18... Nd5 {[%clk 0:02:00.1]} 19. Qd6 {[%clk 0:01:36.3]} 19...
Qxf5 {[%clk 0:01:51.1]} 20. Bg4 {[%clk 0:01:33.5]} 20... Qxe5 {[%clk 0:01:44.5]}
21. Qxd7 {[%clk 0:01:31.4]} 21... Rad8 {[%clk 0:01:38]} 22. Qxa7 {[%clk
0:01:25.5]} 22... h5 {[%clk 0:01:36.3]} 23. Bd7 {[%clk 0:01:01.9]} 23... Bc2
{[%clk 0:00:55.9]} 24. Rd2 {[%clk 0:00:44.9]} 24... Nf6 {[%clk 0:00:44.6]} 25.
Rxc2 {[%clk 0:00:38.1]} 25... Rxd7 {[%clk 0:00:43.5]} 26. Qe3 {[%clk 0:00:32.8]}
26... Rd1+ {[%clk 0:00:42.7]} 0-1

[Event "*** Titled Tuesday Blitz"]
[Site "Chess.com"]
[Date "2020.10.20"]
[Round "3"]
[White "joppie2"]
[Black "ScarpaChess"]
[Result "1-0"]
[WhiteElo "2862"]
[BlackElo "2414"]
[TimeControl "180+1"]
[EndTime "10:27:49 PDT"]
[Termination "joppie2 won by resignation"]

1. e4 {[%clk 0:03:00.9]} 1... c5 {[%clk 0:02:59.1]} 2. Nf3 {[%clk 0:03:00.9]}
2... d6 {[%clk 0:02:58.9]} 3. d4 {[%clk 0:03:01.5]} 3... cxd4 {[%clk 0:02:58.9]}
4. Nxd4 {[%clk 0:03:02.4]} 4... Nf6 {[%clk 0:02:59.4]} 5. Bb5+ {[%clk 0:03:03]}
5... Nbd7 {[%clk 0:02:51.5]} 6. c4 {[%clk 0:03:03]} 6... Nxe4 {[%clk 0:02:32.7]}
7. O-O {[%clk 0:03:02.9]} 7... a6 {[%clk 0:02:32.7]} 8. Ba4 {[%clk 0:03:02.9]}
8... Nc5 {[%clk 0:02:27.9]} 9. Re1 {[%clk 0:03:01.1]} 9... Nxa4 {[%clk
0:02:21.6]} 10. Qxa4 {[%clk 0:02:52.9]} 10... e6 {[%clk 0:02:19.8]} 11. Nc3
{[%clk 0:02:46.5]} 11... Be7 {[%clk 0:02:17.8]} 12. Nd5 {[%clk 0:02:45.6]} 12...
exd5 {[%clk 0:02:11.9]} 13. Nf5 {[%clk 0:02:45.3]} 13... b5 {[%clk 0:02:01.2]}
14. cxb5 {[%clk 0:02:45.2]} 14... Ne5 {[%clk 0:01:59.9]} 15. Nxg7+ {[%clk
0:02:45.3]} 15... Kf8 {[%clk 0:01:59.9]} 16. Bh6 {[%clk 0:02:45.9]} 16... Kg8
{[%clk 0:01:50.8]} 17. b6 {[%clk 0:02:42]} 17... Bg5 {[%clk 0:01:41.9]} 18. Bxg5
{[%clk 0:01:34.1]} 18... Qxg5 {[%clk 0:01:42.8]} 19. f4 {[%clk 0:01:34.5]} 19...
Bd7 {[%clk 0:01:33.4]} 20. Qa3 {[%clk 0:01:32.8]} 20... Qxg7 {[%clk 0:01:18]}
21. fxe5 {[%clk 0:01:32]} 21... dxe5 {[%clk 0:01:16.2]} 22. Re3 {[%clk
0:01:26.9]} 22... Bf5 {[%clk 0:01:04.1]} 23. Rg3 {[%clk 0:01:26.7]} 23... Bg6
{[%clk 0:01:04.3]} 24. b7 {[%clk 0:01:27.6]} 24... Rb8 {[%clk 0:00:57.7]} 25.
Rc1 {[%clk 0:01:28.1]} 25... Qf8 {[%clk 0:00:52.7]} 26. Qxa6 {[%clk 0:01:27.9]}
26... Kg7 {[%clk 0:00:51.9]} 27. Rgc3 {[%clk 0:01:25.2]} 27... Qe7 {[%clk
0:00:34.5]} 28. Rc7 {[%clk 0:01:25.4]} 28... Qf6 {[%clk 0:00:29.3]} 29. Qa7
{[%clk 0:01:21.9]} 29... Qd6 {[%clk 0:00:21.5]} 30. Rc8 {[%clk 0:01:14.7]} 30...
d4 {[%clk 0:00:21.3]} 31. Rxh8 {[%clk 0:01:14.2]} 31... Rxh8 {[%clk 0:00:19]}
32. Rc8 {[%clk 0:01:14.6]} 32... d3 {[%clk 0:00:16.8]} 33. b8=Q {[%clk
0:01:12.4]} 33... Qxb8 {[%clk 0:00:15.8]} 34. Qxb8 {[%clk 0:01:10.6]} 34... Rxc8
{[%clk 0:00:14.2]} 35. Qxc8 {[%clk 0:01:09.6]} 35... d2 {[%clk 0:00:15.1]} 36.
Qd8 {[%clk 0:01:10]} 1-0

[Event "*** Titled Tuesday Blitz"]
[Site "Chess.com"]
[Date "2020.10.20"]
[Round "3"]
[White "JiiHart"]
[Black "googlegoom"]
[Result "0-1"]
[WhiteElo "2061"]
[BlackElo "2360"]
[TimeControl "180+1"]
[EndTime "10:27:51 PDT"]
[Termination "googlegoom won by resignation"]

1. e4 {[%clk 0:03:00.9]} 1... c5 {[%clk 0:02:59.2]} 2. Nf3 {[%clk 0:03:00.9]}
2... Nc6 {[%clk 0:02:57.9]} 3. d4 {[%clk 0:03:01.1]} 3... cxd4 {[%clk
0:02:58.2]} 4. Nxd4 {[%clk 0:03:01.8]} 4... Qb6 {[%clk 0:02:58.8]} 5. Nb3 {[%clk
0:03:00.6]} 5... Nf6 {[%clk 0:02:57.7]} 6. Nc3 {[%clk 0:02:58.2]} 6... e6 {[%clk
0:02:58]} 7. g3 {[%clk 0:02:53.9]} 7... Bb4 {[%clk 0:02:56.8]} 8. Bg2 {[%clk
0:02:52.9]} 8... d5 {[%clk 0:02:56.8]} 9. O-O {[%clk 0:02:39.5]} 9... Bxc3
{[%clk 0:02:55.3]} 10. bxc3 {[%clk 0:02:28.9]} 10... Nxe4 {[%clk 0:02:55.6]} 11.
Bxe4 {[%clk 0:01:50.9]} 11... dxe4 {[%clk 0:02:54.2]} 12. Ba3 {[%clk 0:01:51.6]}
12... f6 {[%clk 0:01:39.7]} 13. Qg4 {[%clk 0:01:37.5]} 13... Kf7 {[%clk
0:01:39.1]} 14. Qxe4 {[%clk 0:01:37.7]} 14... Ne5 {[%clk 0:01:26.1]} 15. Nd4
{[%clk 0:01:18.4]} 15... Bd7 {[%clk 0:01:17]} 16. Rab1 {[%clk 0:00:59.5]} 16...
Bc6 {[%clk 0:01:03.3]} 17. Nxc6 {[%clk 0:00:45.3]} 17... Qxc6 {[%clk 0:01:04.2]}
18. Rxb7+ {[%clk 0:00:44.7]} 18... Kg8 {[%clk 0:01:04.7]} 19. Qxc6 {[%clk
0:00:32.3]} 19... Nxc6 {[%clk 0:01:05.6]} 20. Rd1 {[%clk 0:00:30.4]} 20... h5
{[%clk 0:01:01.2]} 21. Rdd7 {[%clk 0:00:29.3]} 21... Rh7 {[%clk 0:01:01.7]} 22.
Bc5 {[%clk 0:00:20]} 22... Rc8 {[%clk 0:00:54.4]} 23. Bxa7 {[%clk 0:00:18.4]}
23... Ne5 {[%clk 0:00:50.1]} 24. Rdc7 {[%clk 0:00:18]} 24... Rxc7 {[%clk
0:00:47.5]} 25. Rxc7 {[%clk 0:00:18.2]} 25... g5 {[%clk 0:00:46.5]} 26. c4
{[%clk 0:00:18.4]} 26... Rxc7 {[%clk 0:00:45.8]} 0-1

[Event "*** Titled Tuesday Blitz"]
[Site "Chess.com"]
[Date "2020.10.20"]
[Round "3"]
[White "Loy_Konstantin"]
[Black "Flawless_Fighter"]
[Result "0-1"]
[WhiteElo "2361"]
[BlackElo "2567"]
[TimeControl "180+1"]
[EndTime "10:27:52 PDT"]
[Termination "Flawless_Fighter won on time"]

1. e4 {[%clk 0:02:51.1]} 1... c6 {[%clk 0:02:59.8]} 2. d4 {[%clk 0:02:50.7]}
2... d5 {[%clk 0:03:00.7]} 3. exd5 {[%clk 0:02:50.3]} 3... cxd5 {[%clk
0:03:00.8]} 4. c4 {[%clk 0:02:51.2]} 4... Nf6 {[%clk 0:03:00.4]} 5. Nc3 {[%clk
0:02:51.2]} 5... e6 {[%clk 0:03:00.2]} 6. Nf3 {[%clk 0:02:50.7]} 6... Bb4 {[%clk
0:03:00.5]} 7. cxd5 {[%clk 0:02:43.7]} 7... Nxd5 {[%clk 0:02:59.4]} 8. Qc2
{[%clk 0:02:43.9]} 8... h6 {[%clk 0:02:57]} 9. Bd3 {[%clk 0:02:37.7]} 9... O-O
{[%clk 0:02:55.8]} 10. a3 {[%clk 0:02:37.3]} 10... Be7 {[%clk 0:02:49.3]} 11.
O-O {[%clk 0:02:35.4]} 11... Nc6 {[%clk 0:02:48.6]} 12. Rd1 {[%clk 0:02:26.8]}
12... Bd7 {[%clk 0:02:46.2]} 13. Nxd5 {[%clk 0:02:21.2]} 13... exd5 {[%clk
0:02:47.1]} 14. Bf4 {[%clk 0:02:19.9]} 14... Rc8 {[%clk 0:02:46.4]} 15. Qb3
{[%clk 0:02:17.5]} 15... Bg4 {[%clk 0:02:45.6]} 16. Be2 {[%clk 0:02:08.9]} 16...
Bf6 {[%clk 0:02:43.7]} 17. Qxb7 {[%clk 0:01:52.2]} 17... Bxf3 {[%clk 0:02:41.7]}
18. Bxf3 {[%clk 0:01:49.5]} 18... Nxd4 {[%clk 0:02:41.5]} 19. Qxa7 {[%clk
0:01:10.9]} 19... Nxf3+ {[%clk 0:02:28.4]} 20. gxf3 {[%clk 0:01:11.8]} 20...
Bxb2 {[%clk 0:02:28.8]} 21. Ra2 {[%clk 0:01:06]} 21... Qf6 {[%clk 0:02:25.6]}
22. Bg3 {[%clk 0:00:55.2]} 22... Qxf3 {[%clk 0:02:21.4]} 23. Qa4 {[%clk
0:00:30.6]} 23... Bf6 {[%clk 0:02:05.5]} 24. Rad2 {[%clk 0:00:25.9]} 24... d4
{[%clk 0:02:06]} 25. Qb5 {[%clk 0:00:20.6]} 25... Rc3 {[%clk 0:01:58.2]} 26. a4
{[%clk 0:00:19]} 26... Rfc8 {[%clk 0:01:52.5]} 27. a5 {[%clk 0:00:18.5]} 27...
Rc1 {[%clk 0:01:51.9]} 28. Qf1 {[%clk 0:00:17.6]} 28... Rxd1 {[%clk 0:01:49]}
29. Qxd1 {[%clk 0:00:17.4]} 29... Qa3 {[%clk 0:01:47.9]} 30. Kg2 {[%clk
0:00:07.1]} 30... Qxa5 {[%clk 0:01:47.4]} 31. Rd3 {[%clk 0:00:06.5]} 31... Qd5+
{[%clk 0:01:46.5]} 32. Qf3 {[%clk 0:00:05.8]} 32... Qb5 {[%clk 0:01:38.2]} 33.
Qe4 {[%clk 0:00:05.2]} 33... Rc3 {[%clk 0:01:34]} 34. Rxc3 {[%clk 0:00:01.1]}
34... dxc3 {[%clk 0:01:34.9]} 35. Qa8+ {[%clk 0:00:01.2]} 35... Kh7 {[%clk
0:01:34.8]} 36. Qe4+ {[%clk 0:00:01.7]} 36... g6 {[%clk 0:01:35.5]} 37. Qc2
{[%clk 0:00:01.5]} 37... Qc6+ {[%clk 0:01:34.4]} 38. f3 {[%clk 0:00:01.1]} 38...
Kg7 {[%clk 0:01:33.6]} 39. Bf2 {[%clk 0:00:01.3]} 39... Qd5 {[%clk 0:01:31.4]}
0-1

[Event "*** Titled Tuesday Blitz"]
[Site "Chess.com"]
[Date "2020.10.20"]
[Round "3"]
[White "BikingBrian"]
[Black "Orest_Vovk"]
[Result "0-1"]
[WhiteElo "2247"]
[BlackElo "2475"]
[TimeControl "180+1"]
[EndTime "10:27:56 PDT"]
[Termination "Orest_Vovk won by resignation"]

1. d4 {[%clk 0:03:00.9]} 1... Nc6 {[%clk 0:02:59.5]} 2. e4 {[%clk 0:02:57.5]}
2... e5 {[%clk 0:02:59.1]} 3. d5 {[%clk 0:02:56]} 3... Nce7 {[%clk 0:02:59.2]}
4. Nf3 {[%clk 0:02:46.8]} 4... Ng6 {[%clk 0:02:46.5]} 5. h4 {[%clk 0:02:43.2]}
5... h5 {[%clk 0:02:41.3]} 6. Bg5 {[%clk 0:02:41.9]} 6... Nf6 {[%clk 0:02:40.6]}
7. Nc3 {[%clk 0:02:12.5]} 7... Bc5 {[%clk 0:02:39.6]} 8. Na4 {[%clk 0:02:08.2]}
8... Bb6 {[%clk 0:02:30.4]} 9. Nxb6 {[%clk 0:02:05.2]} 9... axb6 {[%clk
0:02:30]} 10. Be2 {[%clk 0:01:56]} 10... d6 {[%clk 0:02:28.2]} 11. Qd3 {[%clk
0:01:54.5]} 11... Bg4 {[%clk 0:02:22.7]} 12. a3 {[%clk 0:01:43.1]} 12... Qd7
{[%clk 0:02:22.5]} 13. Bxf6 {[%clk 0:01:37.7]} 13... Nf4 {[%clk 0:02:16.3]} 14.
Qb5 {[%clk 0:01:29.5]} 14... gxf6 {[%clk 0:02:10.6]} 15. Qxd7+ {[%clk
0:01:17.7]} 15... Kxd7 {[%clk 0:02:06.6]} 16. g3 {[%clk 0:01:17.2]} 16... Nxe2
{[%clk 0:02:05.8]} 17. Kxe2 {[%clk 0:01:17.5]} 17... f5 {[%clk 0:01:58.5]} 18.
Ke3 {[%clk 0:01:15.8]} 18... fxe4 {[%clk 0:01:57.9]} 19. Ng5 {[%clk 0:01:01.1]}
19... f5 {[%clk 0:01:50.6]} 20. c4 {[%clk 0:00:42.3]} 20... Rhf8 {[%clk
0:01:33.9]} 21. Kd2 {[%clk 0:00:33.5]} 21... f4 {[%clk 0:01:27.3]} 22. Rhe1
{[%clk 0:00:24]} 22... e3+ {[%clk 0:01:25.5]} 23. fxe3 {[%clk 0:00:21.5]} 23...
fxg3 {[%clk 0:01:25.5]} 24. Rg1 {[%clk 0:00:17.6]} 24... Rf2+ {[%clk 0:01:22.6]}
25. Kc3 {[%clk 0:00:17.8]} 25... g2 {[%clk 0:01:16]} 26. Rac1 {[%clk 0:00:14.4]}
26... Raf8 {[%clk 0:01:11.7]} 27. Rc2 {[%clk 0:00:14.4]} 27... Rxc2+ {[%clk
0:01:09.7]} 28. Kxc2 {[%clk 0:00:14.6]} 28... Rf2+ {[%clk 0:01:09]} 29. Kc3
{[%clk 0:00:13.9]} 29... Re2 {[%clk 0:01:02.5]} 30. Kd3 {[%clk 0:00:13.2]} 30...
Rxb2 {[%clk 0:01:02.3]} 31. Ne4 {[%clk 0:00:09.9]} 31... Bf5 {[%clk 0:00:54.5]}
0-1

[Event "*** Titled Tuesday Blitz"]
[Site "Chess.com"]
[Date "2020.10.20"]
[Round "3"]
[White "mishanick"]
[Black "TorFredrikKaasen"]
[Result "1-0"]
[WhiteElo "2991"]
[BlackElo "2708"]
[TimeControl "180+1"]
[EndTime "10:28:01 PDT"]
[Termination "mishanick won by resignation"]

1. d4 {[%clk 0:03:00.9]} 1... Nf6 {[%clk 0:02:55.2]} 2. c4 {[%clk 0:03:00.4]}
2... e6 {[%clk 0:02:55.4]} 3. Nc3 {[%clk 0:02:59.5]} 3... d5 {[%clk 0:02:53.4]}
4. cxd5 {[%clk 0:02:59.5]} 4... Nxd5 {[%clk 0:02:53.1]} 5. e4 {[%clk 0:02:59.5]}
5... Nxc3 {[%clk 0:02:53.3]} 6. bxc3 {[%clk 0:03:00.4]} 6... c5 {[%clk
0:02:53.3]} 7. a3 {[%clk 0:03:00.6]} 7... g6 {[%clk 0:02:50.8]} 8. Nf3 {[%clk
0:02:55.3]} 8... Bg7 {[%clk 0:02:51]} 9. Be3 {[%clk 0:02:55.3]} 9... O-O {[%clk
0:02:51.3]} 10. Be2 {[%clk 0:02:50.9]} 10... b6 {[%clk 0:02:47.4]} 11. O-O
{[%clk 0:02:49.3]} 11... Bb7 {[%clk 0:02:47.3]} 12. Qc2 {[%clk 0:02:49.3]} 12...
Qc7 {[%clk 0:02:39.2]} 13. Rac1 {[%clk 0:02:44.4]} 13... cxd4 {[%clk 0:02:35.6]}
14. Nxd4 {[%clk 0:02:38.7]} 14... Nc6 {[%clk 0:02:26.7]} 15. Nb5 {[%clk
0:02:38]} 15... Qe7 {[%clk 0:02:25.7]} 16. Rfd1 {[%clk 0:02:36.3]} 16... Rfd8
{[%clk 0:02:25.6]} 17. a4 {[%clk 0:02:34.5]} 17... Rac8 {[%clk 0:02:23.4]} 18.
Qb3 {[%clk 0:02:28.3]} 18... Na5 {[%clk 0:02:08.9]} 19. Qb4 {[%clk 0:02:26]}
19... Bf8 {[%clk 0:01:51.7]} 20. Qxe7 {[%clk 0:02:06.6]} 20... Bxe7 {[%clk
0:01:52.6]} 21. Rxd8+ {[%clk 0:01:53.2]} 21... Rxd8 {[%clk 0:01:48.6]} 22. Nxa7
{[%clk 0:01:53.7]} 22... Bc5 {[%clk 0:01:18.7]} 23. Bxc5 {[%clk 0:01:47]} 23...
bxc5 {[%clk 0:01:19.6]} 24. f3 {[%clk 0:01:44.9]} 24... Rd2 {[%clk 0:01:19.7]}
25. Bb5 {[%clk 0:01:43.5]} 25... c4 {[%clk 0:01:10.2]} 26. h4 {[%clk 0:01:40.6]}
26... h5 {[%clk 0:01:10.1]} 27. Kh2 {[%clk 0:01:38.6]} 27... Kf8 {[%clk
0:01:10.3]} 28. Kg3 {[%clk 0:01:38.5]} 28... Ke7 {[%clk 0:01:10.6]} 29. Rb1
{[%clk 0:01:37.7]} 29... Ba8 {[%clk 0:00:41.6]} 30. Nc8+ {[%clk 0:01:35.8]}
30... Kf6 {[%clk 0:00:35.4]} 31. Nb6 {[%clk 0:01:36.7]} 31... Bb7 {[%clk
0:00:29.8]} 32. Nxc4 {[%clk 0:01:32]} 32... Nxc4 {[%clk 0:00:29.6]} 33. Bxc4
{[%clk 0:01:32.9]} 33... Bc6 {[%clk 0:00:29.8]} 34. Bb5 {[%clk 0:01:33.3]} 34...
Ba8 {[%clk 0:00:27]} 35. a5 {[%clk 0:01:33.2]} 35... Ra2 {[%clk 0:00:24.9]} 36.
a6 {[%clk 0:01:33.6]} 36... Ke5 {[%clk 0:00:24.1]} 37. Rd1 {[%clk 0:01:32.9]}
37... f5 {[%clk 0:00:24.3]} 38. Rd8 {[%clk 0:01:33]} 38... f4+ {[%clk
0:00:20.8]} 39. Kh3 {[%clk 0:01:32]} 39... Ra1 {[%clk 0:00:20.3]} 40. Kh2 {[%clk
0:01:31.5]} 40... Ra5 {[%clk 0:00:18.4]} 41. c4 {[%clk 0:01:31.3]} 41... Bxe4
{[%clk 0:00:18.7]} 42. fxe4 {[%clk 0:01:31.2]} 42... Ra2 {[%clk 0:00:19.6]} 43.
Kg1 {[%clk 0:01:25.8]} 43... Kxe4 {[%clk 0:00:19.4]} 44. Rd7 {[%clk 0:01:26.1]}
44... Ke3 {[%clk 0:00:17.1]} 45. a7 {[%clk 0:01:26.1]} 45... f3 {[%clk
0:00:14.8]} 46. gxf3 {[%clk 0:01:25.9]} 46... Kxf3 {[%clk 0:00:14.2]} 47. Bc6+
{[%clk 0:01:26]} 1-0

[Event "*** Titled Tuesday Blitz"]
[Site "Chess.com"]
[Date "2020.10.20"]
[Round "3"]
[White "PotapovaM"]
[Black "dosto07"]
[Result "1-0"]
[WhiteElo "2527"]
[BlackElo "2332"]
[TimeControl "180+1"]
[EndTime "10:28:02 PDT"]
[Termination "PotapovaM won by resignation"]

1. d4 {[%clk 0:03:00.9]} 1... d5 {[%clk 0:02:59.7]} 2. c4 {[%clk 0:02:59.6]}
2... dxc4 {[%clk 0:02:59.8]} 3. e4 {[%clk 0:02:59.4]} 3... e5 {[%clk 0:02:58.5]}
4. Nf3 {[%clk 0:02:59.3]} 4... exd4 {[%clk 0:02:59.4]} 5. Bxc4 {[%clk
0:02:59.4]} 5... Nc6 {[%clk 0:02:59.9]} 6. O-O {[%clk 0:02:59]} 6... Be6 {[%clk
0:03:00.4]} 7. Bb5 {[%clk 0:02:59.3]} 7... Bc5 {[%clk 0:02:58.8]} 8. b4 {[%clk
0:02:59.4]} 8... Bb6 {[%clk 0:02:58.1]} 9. a4 {[%clk 0:02:59.9]} 9... a6 {[%clk
0:02:57.7]} 10. Bxc6+ {[%clk 0:03:00.1]} 10... bxc6 {[%clk 0:02:57.8]} 11. a5
{[%clk 0:03:01]} 11... Ba7 {[%clk 0:02:57.6]} 12. Bb2 {[%clk 0:03:01.6]} 12...
Nf6 {[%clk 0:02:57.7]} 13. Bxd4 {[%clk 0:03:02.2]} 13... Nxe4 {[%clk 0:02:50.7]}
14. Bxa7 {[%clk 0:03:00.7]} 14... Qxd1 {[%clk 0:02:41.2]} 15. Rxd1 {[%clk
0:03:01.6]} 15... Rxa7 {[%clk 0:02:41.3]} 16. Nd4 {[%clk 0:02:57.2]} 16... Bd5
{[%clk 0:02:36]} 17. f3 {[%clk 0:02:56.8]} 17... Nd6 {[%clk 0:02:34.6]} 18. Nc3
{[%clk 0:02:54]} 18... Kd7 {[%clk 0:02:25.5]} 19. Na4 {[%clk 0:02:39.3]} 19...
Rb8 {[%clk 0:02:13.6]} 20. Nc5+ {[%clk 0:02:39.2]} 20... Ke8 {[%clk 0:02:07.4]}
21. Re1+ {[%clk 0:02:38.1]} 21... Kd8 {[%clk 0:01:55.1]} 22. Re5 {[%clk
0:02:30.9]} 22... Rxb4 {[%clk 0:01:42.3]} 23. Rxd5 {[%clk 0:02:24.2]} 23... cxd5
{[%clk 0:01:34.3]} 24. Nc6+ {[%clk 0:02:23.9]} 24... Ke8 {[%clk 0:01:33]} 25.
Re1+ {[%clk 0:02:05]} 25... Kf8 {[%clk 0:01:31.8]} 26. Nxb4 {[%clk 0:01:47.6]}
26... c6 {[%clk 0:01:27]} 27. Nbxa6 {[%clk 0:01:38.1]} 27... g6 {[%clk
0:01:22.8]} 28. Kf2 {[%clk 0:01:32.3]} 28... Nc4 {[%clk 0:01:21.2]} 29. Ra1
{[%clk 0:01:25.5]} 29... Ke7 {[%clk 0:01:18.9]} 30. h4 {[%clk 0:01:05.2]} 30...
Kd6 {[%clk 0:01:17.5]} 31. g4 {[%clk 0:01:00.8]} 31... Ra8 {[%clk 0:01:11]} 32.
Nb7+ {[%clk 0:00:49.9]} 32... Ke7 {[%clk 0:01:00.7]} 33. Nac5 {[%clk 0:00:50.8]}
33... Ra7 {[%clk 0:00:53.7]} 34. a6 {[%clk 0:00:48.8]} 34... d4 {[%clk
0:00:46.7]} 35. Re1+ {[%clk 0:00:47.2]} 35... Kf6 {[%clk 0:00:44.7]} 36. g5+
{[%clk 0:00:42.4]} 36... Kg7 {[%clk 0:00:44.7]} 37. Rd1 {[%clk 0:00:37.4]} 1-0